fUST/lending_fUST_20260113
["ID","MTS","AMOUNT","RATE_DAILY","PERIOD"]
[401492128,1768266644164,-152.0,0.0002,2]
[401492129,1768266644174,-337.0,0.0002,2]
[401492130,1768266644184,-347.0,0.0002,2]
[401492131,1768266644194,-152.0,0.0002,2]
[401492132,1768266644203,-172.0,0.0002,2]
[401492133,1768266644212,-151.0,0.0002,2]
[401492134,1768266644221,-337.0,0.0002,2]
[401492135,1768266644230,-347.0,0.0002,2]
[401492136,1768266644239,-152.0,0.0002,2]
[401492137,1768266644249,-337.0,0.0002,2]
[401492138,1768266644258,-347.0,0.0002,2]
[401492139,1768266644270,-337.0,0.0002,2]
[401492140,1768266644279,-152.0,0.0002,2]
[401492141,1768266644289,-151.0,0.0002,2]
[401492142,1768266644306,-151.0,0.0002,2]
[401492143,1768266644321,-347.0,0.0002,2]
[401492144,1768266644337,-337.0,0.0002,2]
[401492145,1768266644347,-152.0,0.0002,2]
[401492146,1768266644358,-347.0,0.0002,2]
[401492147,1768266644368,-151.0,0.0002,2]
[401492148,1768266644379,-337.0,0.0002,2]
[401492149,1768266644389,-298.51382573,0.0002,2]
[401492150,1768266644398,-151.0,0.0002,2]
[401492151,1768266644409,-347.0,0.0002,2]
[401492152,1768266644419,-151.0,0.0002,2]
[401492153,1768266644429,-337.0,0.0002,2]
[401492154,1768266644440,-347.0,0.0002,2]
[401492155,1768266644450,-151.0,0.0002,2]
[401492156,1768266644461,-151.0,0.0002,2]
[401492157,1768266644470,-337.0,0.0002,2]
[401492158,1768266644480,-347.0,0.0002,2]
[401492159,1768266644491,-151.0,0.0002,2]
[401492160,1768266644502,-151.0,0.0002,2]
[401492161,1768266644513,-337.0,0.0002,2]
[401492162,1768266644524,-347.0,0.0002,2]
[401492163,1768266644534,-151.0,0.0002,2]
[401492164,1768266644544,-337.0,0.0002,2]
[401492165,1768266644556,-347.0,0.0002,2]
[401492166,1768266644566,-151.0,0.0002,2]
[401492167,1768266644575,-151.0,0.0002,2]
[401492168,1768266644584,-337.0,0.0002,2]
[401492169,1768266644594,-347.0,0.0002,2]
[401492170,1768266644603,-151.0,0.0002,2]
[401492171,1768266644612,-337.0,0.0002,2]
[401492172,1768266644621,-151.0,0.0002,2]
[401492173,1768266644630,-347.0,0.0002,2]
[401492174,1768266644640,-199.32099567,0.0002,2]
[401492175,1768266644650,-337.0,0.0002,2]
[401492176,1768266644659,-347.0,0.0002,2]
[401492177,1768266644668,-151.0,0.0002,2]
[401492178,1768266644677,-337.0,0.0002,2]
[401492179,1768266644687,-347.0,0.0002,2]
[401492180,1768266644696,-337.0,0.0002,2]
[401492181,1768266644705,-151.0,0.0002,2]
[401492182,1768266644715,-337.0,0.0002,2]
[401492183,1768266644723,-347.0,0.0002,2]
[401492184,1768266644732,-337.0,0.0002,2]
[401492185,1768266644742,-151.0,0.0002,2]
[401492186,1768266644751,-347.0,0.0002,2]
[401492187,1768266644760,-337.0,0.0002,2]
[401492188,1768266644769,-347.0,0.0002,2]
[401492189,1768266644779,-151.0,0.0002,2]
[401492190,1768266644788,-337.0,0.0002,2]
[401492191,1768266644798,-337.0,0.0002,2]
[401492192,1768266644810,-214.08732261,0.0002,2]
[401492193,1768266644819,-337.0,0.0002,2]
[401492194,1768266644828,-337.0,0.0002,2]
[401492195,1768266644837,-337.0,0.0002,2]
[401492196,1768266644847,-416.19601909,0.0002,2]
[401492197,1768266644856,-347.0,0.0002,2]
[401492198,1768266644866,-347.0,0.0002,2]
[401492199,1768266644875,-347.0,0.0002,2]
[401492200,1768266644884,-347.0,0.0002,2]
[401492201,1768266644893,-347.0,0.0002,2]
[401492202,1768266644903,-347.0,0.0002,2]
[401492203,1768266644912,-347.0,0.0002,2]
[401492204,1768266644922,-347.0,0.0002,2]
[401492205,1768266644931,-170.678359,0.0002,2]
[401492206,1768266644941,-170.678359,0.0002,2]
[401492207,1768266644950,-170.678359,0.0002,2]
[401492208,1768266644959,-170.678359,0.0002,2]
[401492209,1768266644969,-2000.0,0.0002,7]
[401492210,1768266644978,-728.0,0.00020022,2]
[401492211,1768266644987,-454.65002405,0.00020034,4]
[401492212,1768266644997,-160.0,0.00020057,2]
[401492213,1768266645006,-728.0,0.00020082,2]
[401492214,1768266645015,-1366.0,0.00020136,2]
[401492215,1768266645025,-2147.0,0.00020136,2]
[401492216,1768266645034,-628.0,0.00020136,2]
[401492217,1768266645044,-715.0,0.00020136,2]
[401492218,1768266645053,-197.827,0.00020136,2]
[401492219,1768266645063,-417.0,0.00020136,2]
[401492220,1768266645072,-417.0,0.00020136,2]
[401492221,1768266645082,-728.0,0.00020136,2]
[401492222,1768266645091,-728.0,0.00020156,2]
[401492224,1768266645100,-454.65002405,0.00020223,4]
[401492226,1768266645111,-350.0,0.00020274,2]
[401492227,1768266645120,-728.0,0.00020342,2]
[401492228,1768266645130,-2773.56790519,0.00020379,2]
[401492229,1768266645140,-574.12855637,0.00020379,2]
[401492230,1768266645150,-728.0,0.000204,2]
[401492231,1768266645159,-454.53633732,0.00020412,4]
[401492232,1768266645170,-728.0,0.00020445,2]
[401492233,1768266645179,-151.0,0.00020483,2]
[401492234,1768266645188,-1393.247444,0.00020548,2]
[401492235,1768266645198,-728.0,0.0002055,2]
[401492236,1768266645207,-17700.54,0.000206,2]
[401492237,1768266645215,-728.0,0.00020671,2]
[401492238,1768266645224,-728.0,0.00020702,2]
[401492239,1768266645234,-728.0,0.0002072,2]
[401492240,1768266645243,-728.0,0.0002072,2]
[401492241,1768266645253,-216.23543438,0.00020761,3]
[401492242,1768266645262,-255.28085597,0.00020761,3]
[401492243,1768266645272,-160.0,0.00020765,2]
[401492244,1768266645281,-728.0,0.00020776,2]
[401492245,1768266645290,-728.0,0.00020776,2]
[401492246,1768266645301,-450.0,0.00020822,2]
[401492247,1768266645310,-728.0,0.0002085,2]
[401492248,1768266645320,-728.0,0.0002085,2]
[401492249,1768266645329,-151.0,0.0002085,2]
[401492250,1768266645338,-728.0,0.0002087,2]
[401492251,1768266645347,-170.678359,0.0002087,2]
[401492252,1768266645357,-170.678359,0.0002087,2]
[401492253,1768266645366,-170.678359,0.0002087,2]
[401492254,1768266645376,-170.678359,0.0002087,2]
[401492255,1768266645385,-3217.64,0.000209,2]
[401492256,1768266645395,-595.37131296,0.00020927,2]
[401492257,1768266645406,-300.0,0.00020982,2]
[401492258,1768266645415,-151.0,0.00020989,2]
[401492259,1768266645425,-3000.0,0.00021,2]
[401492260,1768266645434,-778.0,0.00021,2]
[401492261,1768266645444,-2000.0,0.00021,7]
[401492263,1768266645452,-3000.0,0.0002101,2]
[401492265,1768266645461,-3000.0,0.0002102,2]
[401492267,1768266645471,-3000.0,0.0002103,2]
[401492268,1768266645480,-728.0,0.0002104,2]
[401492269,1768266645489,-728.0,0.0002104,2]
[401492270,1768266645499,-3000.0,0.0002104,2]
[401492271,1768266645508,-3000.0,0.0002105,2]
[401492272,1768266645517,-3000.0,0.0002106,2]
[401492273,1768266645526,-3000.0,0.0002107,2]
[401492274,1768266645536,-3000.0,0.0002108,2]
[401492275,1768266645546,-3000.0,0.0002109,2]
[401492276,1768266645555,-3000.0,0.000211,2]
[401492277,1768266645564,-2258.0,0.00021102,2]
[401492278,1768266645573,-3000.0,0.0002111,2]
[401492279,1768266645583,-3000.0,0.0002112,2]
[401492280,1768266645592,-3000.0,0.0002113,2]
[401492281,1768266645602,-3000.0,0.0002114,2]
[401492282,1768266645612,-3000.0,0.0002115,2]
[401492283,1768266645621,-1896.73292142,0.0002115,2]
[401492284,1768266645631,-3000.0,0.0002116,2]
[401492285,1768266645640,-5786.360931,0.0002117,2]
[401492286,1768266645650,-39235.95945045,0.000212,2]
[401492287,1768266645659,-159.91,0.000212,2]
[401492288,1768266645669,-563.6615041,0.00021271,2]
[401492289,1768266645678,-162.0,0.00021275,2]
[401492290,1768266645688,-728.0,0.0002136,2]
[401492291,1768266645698,-550.0,0.0002137,2]
[401492292,1768266645707,-15951.76,0.00021404,2]
[401492293,1768266645716,-728.0,0.00021405,2]
[401492294,1768266645726,-617.40005154,0.00021475,2]
[401492295,1768266645735,-151.0,0.00021494,2]
[401492296,1768266645745,-47577.71,0.00021495,2]
[401492297,1768266645755,-2168.50147618,0.0002156,2]
[401492298,1768266645765,-160.0,0.00021595,2]
[401492299,1768266645774,-706.0,0.00021595,2]
[401492300,1768266645783,-316.13882024,0.00021612,27]
[401492301,1768266645793,-728.0,0.00021725,2]
[401492302,1768266645805,-1526.1019299,0.00021781,2]
[401492303,1768266645815,-1000.0,0.00021905,5]
[401492304,1768266645824,-158.2,0.00021908,2]
[401492305,1768266645834,-728.0,0.00021915,2]
[401492306,1768266645844,-1112.0,0.00021917,2]
[401492307,1768266645854,-161.900775,0.00021918,2]
[401492308,1768266645864,-213.034956,0.00021918,2]
[401492309,1768266645874,-213.034956,0.00021918,2]
[401492310,1768266645884,-213.034956,0.00021918,2]
[401492311,1768266645893,-213.034956,0.00021918,2]
[401492312,1768266645903,-151.0,0.00021918,2]
[401492314,1768266645913,-151.0,0.00021918,2]
[401492315,1768266645923,-151.0,0.00021918,2]
[401492316,1768266645932,-215.13425,0.00021918,2]
[401492317,1768266645941,-151.0,0.00021918,2]
[401492318,1768266645951,-151.0,0.00021918,2]
[401492319,1768266645961,-151.0,0.00021918,2]
[401492320,1768266645970,-151.0,0.00021918,2]
[401492321,1768266645979,-151.0,0.00021918,2]
[401492322,1768266645988,-151.0,0.00021918,2]
[401492324,1768266645998,-151.0,0.00021918,2]
[401492325,1768266646008,-151.0,0.00021918,2]
[401492327,1768266646017,-151.0,0.00021918,2]
[401492329,1768266646026,-151.0,0.00021918,2]
[401492330,1768266646035,-151.0,0.00021918,2]
[401492332,1768266646045,-151.0,0.00021918,2]
[401492333,1768266646054,-151.0,0.00021918,2]
[401492334,1768266646063,-151.0,0.00021918,2]
[401492335,1768266646073,-151.0,0.00021918,2]
[401492337,1768266646082,-151.0,0.00021918,2]
[401492338,1768266646091,-151.0,0.00021918,2]
[401492340,1768266646100,-174.104062,0.00021918,2]
[401492341,1768266646109,-151.0,0.00021918,2]
[401492342,1768266646119,-151.0,0.00021918,2]
[401492343,1768266646128,-151.0,0.00021918,2]
[401492344,1768266646138,-151.0,0.00021918,2]
[401492345,1768266646147,-193.584578,0.00021918,2]
[401492346,1768266646156,-151.0,0.00021918,2]
[401492347,1768266646165,-151.0,0.00021918,2]
[401492348,1768266646176,-151.0,0.00021918,2]
[401492349,1768266646185,-151.0,0.00021918,2]
[401492350,1768266646195,-151.0,0.00021918,2]
[401492351,1768266646203,-151.0,0.00021918,2]
[401492352,1768266646296,-151.0,0.00021918,2]
[401492353,1768266646305,-151.0,0.00021918,2]
[401492354,1768266646314,-227.326035,0.00021918,2]
[401492355,1768266646323,-151.0,0.00021918,2]
[401492356,1768266646332,-151.0,0.00021918,2]
[401492357,1768266646341,-154.168239,0.00021918,2]
[401492358,1768266646350,-164.14846,0.00021918,2]
[401492359,1768266646359,-164.14846,0.00021918,2]
[401492360,1768266646368,-164.14846,0.00021918,2]
[401492361,1768266646377,-164.14846,0.00021918,2]
[401492362,1768266646386,-164.14846,0.00021918,2]
[401492363,1768266646395,-164.14846,0.00021918,2]
[401492364,1768266646404,-164.14846,0.00021918,2]
[401492365,1768266646413,-164.14846,0.00021918,2]
[401492366,1768266646423,-151.0,0.00021918,2]
[401492367,1768266646432,-151.0,0.00021918,2]
[401492368,1768266646441,-151.0,0.00021918,2]
[401492369,1768266646449,-151.0,0.00021918,2]
[401492370,1768266646459,-151.0,0.00021918,2]
[401492371,1768266646468,-151.0,0.00021918,2]
[401492372,1768266646477,-151.0,0.00021918,2]
[401492373,1768266646487,-151.0,0.00021918,2]
[401492374,1768266646497,-151.0,0.00021918,2]
[401492375,1768266646506,-151.0,0.00021918,2]
[401492376,1768266646516,-151.0,0.00021918,2]
[401492377,1768266646525,-151.0,0.00021918,2]
[401492378,1768266646534,-180.522489,0.00021918,2]
[401492379,1768266646543,-180.522489,0.00021918,2]
[401492380,1768266646552,-200.0,0.00021918,2]
[401492381,1768266646561,-650.0,0.00021918,2]
[401492382,1768266646570,-791.0,0.00021978,10]
[401492383,1768266646579,-336290.00664155,0.00022,2]
[401492384,1768266647002,-587.46816348,0.00018981,2]
[401492397,1768267008205,-1200.0,0.00011961,2]
[401492398,1768267008231,-300.0,0.00011961,2]
[401492399,1768267008259,-500.0,0.00011962,2]
[401492400,1768267008284,-320.9782985,0.00011962,2]
[401492401,1768267008316,-500.0,0.00011962,2]
[401492402,1768267008350,-500.0,0.00011962,2]
[401492403,1768267008375,-500.0,0.00011962,2]
[401492404,1768267008401,-500.0,0.00011962,2]
[401492405,1768267008427,-533.41615808,0.00011962,2]
[401492406,1768267008451,-500.0,0.00011962,2]
[401492407,1768267008476,-500.0,0.00011962,2]
[401492408,1768267008505,-500.0,0.00011962,2]
[401492409,1768267008532,-500.0,0.00011962,2]
[401492410,1768267008560,-500.0,0.00011962,2]
[401492411,1768267008585,-500.0,0.00011962,2]
[401492412,1768267008611,-500.0,0.00011962,2]
[401492413,1768267008637,-500.0,0.00011962,2]
[401492414,1768267008663,-500.0,0.00011962,2]
[401492415,1768267008687,-500.0,0.00011962,2]
[401492416,1768267008712,-500.0,0.00011962,2]
[401492417,1768267008738,-500.0,0.00011962,2]
[401492418,1768267008774,-500.0,0.00011962,2]
[401492419,1768267008800,-500.0,0.00011962,2]
[401492420,1768267008826,-500.0,0.00011962,2]
[401492421,1768267008853,-500.0,0.00011962,2]
[401492422,1768267008879,-500.0,0.00011962,2]
[401492423,1768267008906,-500.0,0.00011962,2]
[401492424,1768267008931,-500.0,0.00011962,2]
[401492425,1768267008956,-500.0,0.00011962,2]
[401492426,1768267008985,-500.0,0.00011962,2]
[401492427,1768267009011,-500.0,0.00011962,2]
[401492428,1768267009039,-500.0,0.00011962,2]
[401492429,1768267009068,-500.0,0.00011962,2]
[401492430,1768267009095,-500.0,0.00011962,2]
[401492431,1768267009121,-500.0,0.00011962,2]
[401492432,1768267009150,-500.0,0.00011962,2]
[401492433,1768267009176,-500.0,0.00011962,2]
[401492434,1768267009210,-500.0,0.00011962,2]
[401492435,1768267009237,-500.0,0.00011962,2]
[401492436,1768267009264,-500.0,0.00011962,2]
[401492437,1768267009292,-500.0,0.00011962,2]
[401492438,1768267009317,-500.0,0.00011962,2]
[401492439,1768267009342,-500.0,0.00011962,2]
[401492440,1768267009370,-510.38475102,0.00011962,2]
[401492441,1768267009397,-500.0,0.00011962,2]
[401492442,1768267009423,-500.0,0.00011962,2]
[401492443,1768267009448,-500.0,0.00011962,2]
[401492444,1768267009474,-500.0,0.00011962,2]
[401492445,1768267009499,-572.91145649,0.00011962,2]
[401492446,1768267009525,-500.0,0.00011962,2]
[401492447,1768267009548,-500.0,0.00011962,2]
[401492448,1768267009575,-500.0,0.00011962,2]
[401492449,1768267009601,-500.0,0.00011962,2]
[401492450,1768267009630,-500.0,0.00011962,2]
[401492451,1768267009656,-500.0,0.00011962,2]
[401492452,1768267009761,-500.0,0.00011962,2]
[401492453,1768267009787,-500.0,0.00011962,2]
[401492454,1768267009812,-266.7159485,0.00011962,2]
[401492455,1768267009838,-500.0,0.00011962,2]
[401492456,1768267009863,-500.0,0.00011962,2]
[401492457,1768267009890,-500.0,0.00011962,2]
[401492458,1768267009917,-214.96809394,0.00011962,2]
[401492459,1768267009944,-500.0,0.00011962,2]
[401492460,1768267009969,-500.0,0.00011962,2]
[401492461,1768267010001,-500.0,0.00011962,2]
[401492462,1768267010027,-222.62541047,0.00011962,2]
[401492463,1768267010054,-500.0,0.00011962,2]
[401492464,1768267010080,-500.0,0.00011962,2]
[401492465,1768267010107,-500.0,0.00011962,2]
[401492466,1768267010134,-500.0,0.00011962,2]
[401492467,1768267010161,-500.0,0.00011962,2]
[401492468,1768267010188,-500.0,0.00011962,2]
[401492469,1768267010217,-500.0,0.00011962,2]
[401492470,1768267010244,-500.0,0.00011962,2]
[401492471,1768267010270,-500.0,0.00011962,2]
[401492472,1768267010301,-500.0,0.00011962,2]
[401492473,1768267010329,-500.0,0.00011962,2]
[401492474,1768267010356,-500.0,0.00011962,2]
[401492475,1768267010381,-500.0,0.00011962,2]
[401492476,1768267010406,-500.0,0.00011962,2]
[401492477,1768267010432,-500.0,0.00011962,2]
[401492478,1768267010459,-500.0,0.00011962,2]
[401492479,1768267010487,-500.0,0.00011962,2]
[401492480,1768267010515,-500.0,0.00011962,2]
[401492481,1768267010543,-500.0,0.00011962,2]
[401492482,1768267010573,-500.0,0.00011962,2]
[401492483,1768267010601,-500.0,0.00011962,2]
[401492484,1768267010627,-500.0,0.00011962,2]
[401492485,1768267010652,-500.0,0.00011962,2]
[401492486,1768267010678,-500.0,0.00011962,2]
[401492487,1768267010704,-500.0,0.00011962,2]
[401492488,1768267010729,-500.0,0.00011962,2]
[401492489,1768267010757,-500.0,0.00011962,2]
[401492490,1768267010782,-500.0,0.00011962,2]
[401492491,1768267010807,-500.0,0.00011962,2]
[401492492,1768267010830,-500.0,0.00011962,2]
[401492493,1768267010856,-500.0,0.00011962,2]
[401492494,1768267010883,-500.0,0.00011962,2]
[401492495,1768267010913,-500.0,0.00011962,2]
[401492496,1768267010939,-500.0,0.00011962,2]
[401492497,1768267010964,-500.0,0.00011962,2]
[401492498,1768267010994,-500.0,0.00011962,2]
[401492499,1768267011020,-500.0,0.00011962,2]
[401492500,1768267011045,-500.0,0.00011962,2]
[401492501,1768267011074,-500.0,0.00011962,2]
[401492502,1768267011098,-500.0,0.00011962,2]
[401492503,1768267011124,-500.0,0.00011962,2]
[401492504,1768267011152,-500.0,0.00011962,2]
[401492505,1768267011180,-500.0,0.00011962,2]
[401492506,1768267011208,-500.0,0.00011962,2]
[401492507,1768267011236,-500.0,0.00011962,2]
[401492508,1768267011268,-500.0,0.00011962,2]
[401492509,1768267011296,-500.0,0.00011962,2]
[401492510,1768267011325,-500.0,0.00011962,2]
[401492511,1768267011351,-500.0,0.00011962,2]
[401492512,1768267011378,-500.0,0.00011962,2]
[401492513,1768267011405,-500.0,0.00011962,2]
[401492514,1768267011431,-152.73247102,0.00011962,2]
[401492515,1768267011458,-500.0,0.00011962,2]
[401492516,1768267011486,-500.0,0.00011962,2]
[401492517,1768267011513,-500.0,0.00011962,2]
[401492518,1768267011538,-500.0,0.00011962,2]
[401492519,1768267011567,-500.0,0.00011962,2]
[401492520,1768267011598,-500.0,0.00011962,2]
[401492521,1768267011629,-500.0,0.00011962,2]
[401492522,1768267011658,-500.0,0.00011962,2]
[401492523,1768267011685,-500.0,0.00011962,2]
[401492524,1768267011710,-500.0,0.00011962,2]
[401492525,1768267011736,-500.0,0.00011962,2]
[401492526,1768267011761,-500.0,0.00011962,2]
[401492527,1768267011786,-234.61328258,0.00011962,2]
[401492528,1768267011812,-500.0,0.00011962,2]
[401492529,1768267011837,-500.0,0.00011962,2]
[401492530,1768267011863,-500.0,0.00011962,2]
[401492531,1768267011890,-500.0,0.00011962,2]
[401492532,1768267011916,-500.0,0.00011962,2]
[401492533,1768267011942,-250.0,0.00011962,2]
[401492534,1768267011968,-294.4892398,0.00011962,2]
[401492535,1768267012093,-224216.1648896,0.00011963,2]
[401492541,1768267204440,165.13,5e-05,2]
[401492542,1768267204940,165.13,5.6e-05,2]
[401492543,1768267205499,165.13,6.3e-05,2]
[401492544,1768267206059,165.13,6.9e-05,2]
[401492545,1768267206659,165.13,7.6e-05,2]
[401492546,1768267207144,165.13,8.2e-05,2]
[401492547,1768267207755,165.13,8.9e-05,2]
[401492548,1768267208236,165.13,9.5e-05,2]
[401492563,1768267669754,214.09,0.00030137,120]
[401492564,1768267671741,214.09,0.00030137,120]
[401492565,1768267673733,214.09,0.00030137,120]
[401492566,1768267675476,214.09,0.00030137,120]
[401492567,1768267677356,214.09,0.00030137,120]
[401492568,1768267679290,214.09,0.00030137,120]
[401492581,1768267718170,2367.23296763,7.3e-05,2]
[401492583,1768267804393,165.91,5e-05,2]
[401492584,1768267804937,165.91,7.3e-05,2]
[401492586,1768267822056,155.89320107,0.00030136,120]
[401492588,1768267827880,166.65358145,0.00030136,120]
[401492626,1768267832882,-300.0,9.984e-05,2]
[401492627,1768267832892,-300.0,9.984e-05,2]
[401492628,1768267832902,-300.0,9.984e-05,2]
[401492629,1768267832911,-125.58286736,9.984e-05,2]
[401492630,1768267832926,-174.41713264,9.984e-05,2]
[401492631,1768267832937,-1200.0,9.984e-05,2]
[401492632,1768267832946,-560.0,9.984e-05,2]
[401492633,1768267832956,-23499.59561868,9.985e-05,2]
[401492634,1768267836968,163.12608703,0.00030136,120]
[401492653,1768267837921,-57219.25537582,9.985e-05,2]
[401492655,1768267837931,-155.0,0.0001,2]
[401492657,1768267837940,-433.18211007,0.0001,2]
[401492659,1768267837949,-300.0,0.0001003,2]
[401492661,1768267837959,-500.0,0.00010183,2]
[401492663,1768267837968,-500.0,0.00010183,2]
[401492665,1768267837978,-500.0,0.00010183,2]
[401492667,1768267837987,-500.0,0.00010183,2]
[401492669,1768267837996,-501.74621469,0.00010183,2]
[401492670,1768267838005,-500.0,0.00010183,2]
[401492672,1768267838014,-500.0,0.00010183,2]
[401492674,1768267838024,-500.0,0.00010183,2]
[401492675,1768267838033,-500.0,0.00010183,2]
[401492676,1768267838042,-500.0,0.00010183,2]
[401492677,1768267838051,-500.0,0.00010183,2]
[401492678,1768267838060,-500.0,0.00010183,2]
[401492679,1768267838069,-500.0,0.00010183,2]
[401492680,1768267838078,-500.0,0.00010183,2]
[401492681,1768267838088,-500.0,0.00010183,2]
[401492682,1768267838098,-500.0,0.00010183,2]
[401492683,1768267838107,-500.0,0.00010183,2]
[401492684,1768267838118,-212.27116385,0.00010183,2]
[401492685,1768267838128,-500.0,0.00010183,2]
[401492686,1768267838138,-627.07756011,0.00010183,2]
[401492687,1768267838147,-500.0,0.00010183,2]
[401492688,1768267838157,-500.0,0.00010183,2]
[401492689,1768267838168,-303.2463479,0.00010183,2]
[401492690,1768267838178,-500.0,0.00010183,2]
[401492691,1768267838188,-500.0,0.00010183,2]
[401492692,1768267838198,-500.0,0.00010183,2]
[401492693,1768267838208,-500.0,0.00010183,2]
[401492694,1768267838219,-500.0,0.00010183,2]
[401492695,1768267838230,-500.0,0.00010183,2]
[401492696,1768267838240,-500.0,0.00010183,2]
[401492697,1768267838249,-500.0,0.00010183,2]
[401492698,1768267838259,-500.0,0.00010183,2]
[401492699,1768267838269,-500.0,0.00010183,2]
[401492700,1768267838279,-500.0,0.00010183,2]
[401492701,1768267838288,-500.0,0.00010183,2]
[401492702,1768267838298,-500.0,0.00010183,2]
[401492703,1768267838307,-500.0,0.00010183,2]
[401492704,1768267838318,-500.0,0.00010183,2]
[401492705,1768267838328,-500.0,0.00010183,2]
[401492706,1768267838337,-500.0,0.00010183,2]
[401492707,1768267838347,-500.0,0.00010183,2]
[401492708,1768267838356,-500.0,0.00010183,2]
[401492709,1768267838367,-500.0,0.00010183,2]
[401492710,1768267838379,-500.0,0.00010183,2]
[401492711,1768267838389,-277.22947046,0.00010183,2]
[401492712,1768267838399,-237.76592845,0.00010183,2]
[401492713,1768267838409,-500.0,0.00010183,2]
[401492714,1768267838419,-500.0,0.00010183,2]
[401492715,1768267838429,-273.61387798,0.00010183,2]
[401492716,1768267838439,-500.0,0.00010183,2]
[401492717,1768267838448,-500.0,0.00010183,2]
[401492718,1768267838459,-500.0,0.00010183,2]
[401492719,1768267838469,-322.83246849,0.00010183,2]
[401492720,1768267838479,-500.0,0.00010183,2]
[401492721,1768267838489,-500.0,0.00010183,2]
[401492722,1768267838498,-500.0,0.00010183,2]
[401492723,1768267838508,-500.0,0.00010183,2]
[401492724,1768267838517,-500.0,0.00010183,2]
[401492725,1768267838527,-500.0,0.00010183,2]
[401492726,1768267838537,-500.0,0.00010183,2]
[401492727,1768267838546,-500.0,0.00010183,2]
[401492728,1768267838555,-500.0,0.00010183,2]
[401492729,1768267838564,-500.0,0.00010183,2]
[401492730,1768267838575,-500.0,0.00010183,2]
[401492731,1768267838584,-500.0,0.00010183,2]
[401492732,1768267838594,-500.0,0.00010183,2]
[401492733,1768267838604,-500.0,0.00010183,2]
[401492734,1768267838614,-500.0,0.00010183,2]
[401492735,1768267838624,-500.0,0.00010183,2]
[401492736,1768267838633,-500.0,0.00010183,2]
[401492737,1768267838643,-300.0,0.00010184,2]
[401492738,1768267838652,-300.0,0.00010184,2]
[401492739,1768267838661,-300.0,0.00010184,2]
[401492740,1768267838671,-300.0,0.00010184,2]
[401492741,1768267838680,-300.0,0.00010184,2]
[401492742,1768267838690,-300.0,0.00010184,2]
[401492743,1768267838700,-300.0,0.00010184,2]
[401492744,1768267838710,-300.0,0.00010184,2]
[401492745,1768267838719,-300.0,0.00010184,2]
[401492746,1768267838729,-300.0,0.00010184,2]
[401492747,1768267838745,-300.0,0.00010184,2]
[401492748,1768267838755,-300.0,0.00010184,2]
[401492749,1768267838764,-300.0,0.00010184,2]
[401492750,1768267838773,-300.0,0.00010184,2]